[Event "Live Chess"]
[Site "Chess.com"]
[Date "2023.05.20"]
[Round "-"]
[White "chessfiction"]
[Black "Doge_Dandolo"]
[Result "0-1"]
[WhiteElo "2376"]
[BlackElo "2031"]
[TimeControl "300"]
[EndTime "14:02:05 PDT"]
[Termination "Doge_Dandolo won by resignation"]

1. e4 {[%clk 0:04:59.4]} 1... c6 {[%clk 0:04:57.9]} 2. d4 {[%clk 0:04:58.3]}
2... d5 {[%clk 0:04:57.4]} 3. Nc3 {[%clk 0:04:58.1]} 3... dxe4 {[%clk
0:04:56.5]} 4. f3 {[%clk 0:04:57.6]} 4... e3 {[%clk 0:04:53.2]} 5. Bc4 {[%clk
0:04:56.6]} 5... Bf5 {[%clk 0:04:49.8]} 6. Bxe3 {[%clk 0:04:55.5]} 6... e6
{[%clk 0:04:48.6]} 7. Qe2 {[%clk 0:04:54.5]} 7... Nf6 {[%clk 0:04:46.2]} 8.
O-O-O {[%clk 0:04:53.9]} 8... Be7 {[%clk 0:04:44.8]} 9. Kb1 {[%clk 0:04:53.2]}
9... Nbd7 {[%clk 0:04:43]} 10. g4 {[%clk 0:04:52.4]} 10... Bg6 {[%clk
0:04:41.5]} 11. h4 {[%clk 0:04:51.5]} 11... h5 {[%clk 0:04:37.9]} 12. Nh3 {[%clk
0:04:50.2]} 12... Qb6 {[%clk 0:04:32]} 13. Nf4 {[%clk 0:04:48.3]} 13... Bh7
{[%clk 0:04:28.7]} 14. g5 {[%clk 0:04:46.3]} 14... Nd5 {[%clk 0:04:26.9]} 15.
Bxd5 {[%clk 0:04:39.9]} 15... cxd5 {[%clk 0:04:25.8]} 16. g6 {[%clk 0:04:39.3]}
16... Bxg6 {[%clk 0:04:18.9]} 17. Nxg6 {[%clk 0:04:36.6]} 17... fxg6 {[%clk
0:04:17.2]} 18. Bg5 {[%clk 0:04:33.8]} 18... Bxg5 {[%clk 0:04:14.9]} 19. hxg5
{[%clk 0:04:30.9]} 19... O-O-O {[%clk 0:04:11.5]} 20. Rd3 {[%clk 0:04:27.4]}
20... Rhe8 {[%clk 0:04:07.5]} 21. Re1 {[%clk 0:04:23.5]} 21... Qd6 {[%clk
0:03:58.7]} 22. Nb5 {[%clk 0:04:19.4]} 22... Qb6 {[%clk 0:03:56.1]} 23. Rc3+
{[%clk 0:04:16.7]} 23... Kb8 {[%clk 0:03:52.9]} 24. a4 {[%clk 0:04:14.4]} 24...
a6 {[%clk 0:03:51.1]} 25. Na3 {[%clk 0:04:10.1]} 25... e5 {[%clk 0:03:42.5]} 26.
Rb3 {[%clk 0:04:09.3]} 26... Qd6 {[%clk 0:03:36.3]} 27. Qh2 {[%clk 0:04:04.2]}
27... Ka8 {[%clk 0:03:25.4]} 28. c4 {[%clk 0:03:55.6]} 28... dxc4 {[%clk
0:03:22.2]} 29. Nxc4 {[%clk 0:03:54]} 29... Qxd4 {[%clk 0:03:18.7]} 30. Re4
{[%clk 0:03:37.1]} 30... Qc5 {[%clk 0:03:07.8]} 31. a5 {[%clk 0:03:32.9]} 31...
Rc8 {[%clk 0:03:00.7]} 32. Qd2 {[%clk 0:03:27.8]} 32... Rcd8 {[%clk 0:02:54.6]}
33. Rd3 {[%clk 0:03:19.8]} 33... Qc7 {[%clk 0:02:49.7]} 34. Rxd7 {[%clk
0:03:15]} 34... Rxd7 {[%clk 0:02:45.2]} 35. Qxd7 {[%clk 0:03:13.8]} 35... Qxd7
{[%clk 0:02:39]} 36. Nb6+ {[%clk 0:03:13]} 36... Kb8 {[%clk 0:02:38.6]} 37.
Nxd7+ {[%clk 0:03:12.9]} 37... Kc7 {[%clk 0:02:37.9]} 38. Nxe5 {[%clk
0:03:11.8]} 38... Kd6 {[%clk 0:02:37.1]} 39. Nc4+ {[%clk 0:03:05.8]} 39... Kd7
{[%clk 0:02:34.3]} 40. Rxe8 {[%clk 0:03:04.5]} 40... Kxe8 {[%clk 0:02:33.6]} 41.
Ne3 {[%clk 0:03:00.6]} 41... Ke7 {[%clk 0:02:31.9]} 42. Ng2 {[%clk 0:02:58.8]}
42... Ke6 {[%clk 0:02:31]} 43. Nh4 {[%clk 0:02:54.7]} 43... Ke5 {[%clk
0:02:28.5]} 44. Kc2 {[%clk 0:02:47.4]} 44... Kf4 {[%clk 0:02:26.4]} 45. Nxg6+
{[%clk 0:02:44]} 45... Kxg5 {[%clk 0:02:25.4]} 46. Ne5 {[%clk 0:02:40.7]} 46...
h4 {[%clk 0:02:22.4]} 47. Kd3 {[%clk 0:02:33.5]} 47... h3 {[%clk 0:02:21.2]} 48.
Ng4 {[%clk 0:02:32.5]} 48... Kf4 {[%clk 0:02:19]} 49. Ke2 {[%clk 0:02:31.5]}
49... Kg3 {[%clk 0:02:18.1]} 50. Ke3 {[%clk 0:02:13.2]} 50... g5 {[%clk
0:02:14.6]} 51. b4 {[%clk 0:01:30.9]} 51... h2 {[%clk 0:02:06.4]} 52. Nxh2
{[%clk 0:01:27.6]} 52... Kxh2 {[%clk 0:02:06]} 53. f4 {[%clk 0:01:26.3]} 53...
g4 {[%clk 0:02:04.5]} 54. f5 {[%clk 0:01:25.9]} 54... g3 {[%clk 0:02:04]} 55. f6
{[%clk 0:01:25.8]} 55... g2 {[%clk 0:02:03.6]} 56. f7 {[%clk 0:01:25.7]} 56...
g1=Q+ {[%clk 0:02:02.8]} 57. Ke4 {[%clk 0:01:24.9]} 57... Qg7 {[%clk 0:01:59]}
58. Kd5 {[%clk 0:01:23.2]} 58... Qf8 {[%clk 0:01:57.8]} 59. b5 {[%clk
0:01:21.6]} 59... Qxf7+ {[%clk 0:01:53.3]} 0-1

[Event "Live Chess"]
[Site "Chess.com"]
[Date "2023.05.20"]
[Round "-"]
[White "JohanKjeldahl"]
[Black "Delacorta"]
[Result "1-0"]
[WhiteElo "1850"]
[BlackElo "1418"]
[TimeControl "300"]
[EndTime "14:02:11 PDT"]
[Termination "JohanKjeldahl won by resignation"]

1. e4 {[%clk 0:04:56.9]} 1... e6 {[%clk 0:04:59.3]} 2. d4 {[%clk 0:04:55]} 2...
d5 {[%clk 0:04:57.8]} 3. Nd2 {[%clk 0:04:53.7]} 3... Nf6 {[%clk 0:04:52.9]} 4.
e5 {[%clk 0:04:52.1]} 4... Nfd7 {[%clk 0:04:51.9]} 5. Bd3 {[%clk 0:04:51.7]}
5... c5 {[%clk 0:04:51.2]} 6. c3 {[%clk 0:04:50.8]} 6... Nc6 {[%clk 0:04:49.7]}
7. Ne2 {[%clk 0:04:49.7]} 7... Qb6 {[%clk 0:04:48.8]} 8. Nf3 {[%clk 0:04:46.3]}
8... g6 {[%clk 0:04:39]} 9. O-O {[%clk 0:04:44.3]} 9... Bg7 {[%clk 0:04:32.4]}
10. a4 {[%clk 0:04:39.6]} 10... c4 {[%clk 0:04:28]} 11. Bc2 {[%clk 0:04:37.8]}
11... Qd8 {[%clk 0:04:22.4]} 12. Bg5 {[%clk 0:04:35.8]} 12... f6 {[%clk
0:04:12.3]} 13. exf6 {[%clk 0:04:34.4]} 13... Bxf6 {[%clk 0:04:11.4]} 14. Qd2
{[%clk 0:04:31.6]} 14... Bxg5 {[%clk 0:03:56.5]} 15. Nxg5 {[%clk 0:04:30.3]}
15... Nf6 {[%clk 0:03:49.3]} 16. Nf4 {[%clk 0:04:26.4]} 16... Qe7 {[%clk
0:03:17.3]} 17. Rae1 {[%clk 0:04:21.1]} 17... O-O {[%clk 0:03:15.2]} 18. Nfxe6
{[%clk 0:04:14.7]} 18... Bxe6 {[%clk 0:02:51.4]} 19. Rxe6 {[%clk 0:04:11]} 19...
Qd7 {[%clk 0:02:35.7]} 20. Rfe1 {[%clk 0:04:00.1]} 20... h6 {[%clk 0:02:10.8]}
21. Nf3 {[%clk 0:03:56.4]} 21... Rae8 {[%clk 0:02:04.5]} 22. Rxe8 {[%clk
0:03:53.5]} 22... Rxe8 {[%clk 0:02:02.4]} 23. Bxg6 {[%clk 0:03:47.5]} 23...
Rxe1+ {[%clk 0:02:00.4]} 24. Qxe1 {[%clk 0:03:46.1]} 24... Ne7 {[%clk
0:01:55.2]} 25. Bc2 {[%clk 0:03:39.4]} 25... Kf7 {[%clk 0:01:48.9]} 26. Ne5+
{[%clk 0:03:37.2]} 1-0

[Event "Live Chess"]
[Site "Chess.com"]
[Date "2023.05.20"]
[Round "-"]
[White "MrBlond89"]
[Black "ProfPoisson"]
[Result "1-0"]
[WhiteElo "1421"]
[BlackElo "1138"]
[TimeControl "300"]
[EndTime "14:02:15 PDT"]
[Termination "MrBlond89 won by resignation"]

1. e4 {[%clk 0:04:57.4]} 1... e5 {[%clk 0:04:57.6]} 2. Nf3 {[%clk 0:04:56.6]}
2... Nf6 {[%clk 0:04:54.9]} 3. Nxe5 {[%clk 0:04:55.3]} 3... Nxe4 {[%clk
0:04:53.1]} 4. Nc3 {[%clk 0:04:50.3]} 4... Nxc3 {[%clk 0:04:49.3]} 5. dxc3
{[%clk 0:04:49.4]} 5... Qe7 {[%clk 0:04:47.1]} 6. Qe2 {[%clk 0:04:35.7]} 6... d6
{[%clk 0:04:37.5]} 7. Nd3 {[%clk 0:04:33.1]} 7... Bf5 {[%clk 0:04:27.9]} 8. Be3
{[%clk 0:04:30]} 8... Nc6 {[%clk 0:04:23]} 9. O-O-O {[%clk 0:04:26.9]} 9...
O-O-O {[%clk 0:04:20.6]} 10. g4 {[%clk 0:04:22.5]} 10... Be6 {[%clk 0:04:16.9]}
11. h4 {[%clk 0:04:10.7]} 11... f5 {[%clk 0:04:09.3]} 12. gxf5 {[%clk
0:04:05.2]} 12... Bxf5 {[%clk 0:04:04.8]} 13. Bg5 {[%clk 0:03:49.9]} 13... Qe6
{[%clk 0:03:58.4]} 14. Qxe6+ {[%clk 0:03:47.5]} 14... Bxe6 {[%clk 0:03:55.1]}
15. Bxd8 {[%clk 0:03:46.7]} 15... Kxd8 {[%clk 0:03:54]} 16. Bh3 {[%clk
0:03:42.8]} 16... Bxh3 {[%clk 0:03:43.6]} 17. Rxh3 {[%clk 0:03:42.7]} 17... g6
{[%clk 0:03:42.1]} 18. h5 {[%clk 0:03:38.6]} 18... gxh5 {[%clk 0:03:37.1]} 19.
Rxh5 {[%clk 0:03:37.2]} 19... Bg7 {[%clk 0:03:36.3]} 20. Rdh1 {[%clk 0:03:30.4]}
20... h6 {[%clk 0:03:32.3]} 21. Nf4 {[%clk 0:03:28.3]} 21... Ne5 {[%clk
0:03:26.8]} 22. Ne6+ {[%clk 0:03:25]} 1-0

[Event "Live Chess"]
[Site "Chess.com"]
[Date "2023.05.20"]
[Round "-"]
[White "TheSmoulderingMaster"]
[Black "JoshMcK"]
[Result "0-1"]
[WhiteElo "1722"]
[BlackElo "1573"]
[TimeControl "300"]
[EndTime "14:02:27 PDT"]
[Termination "JoshMcK won by checkmate"]

1. e4 {[%clk 0:04:58.9]} 1... c6 {[%clk 0:04:58.6]} 2. d4 {[%clk 0:04:57.3]}
2... d5 {[%clk 0:04:58.5]} 3. Nd2 {[%clk 0:04:56]} 3... dxe4 {[%clk 0:04:54.7]}
4. Nxe4 {[%clk 0:04:55.4]} 4... Nf6 {[%clk 0:04:54.6]} 5. Nxf6+ {[%clk
0:04:54.3]} 5... exf6 {[%clk 0:04:54.5]} 6. Bc4 {[%clk 0:04:52.5]} 6... Bd6
{[%clk 0:04:52.1]} 7. Nf3 {[%clk 0:04:51.6]} 7... O-O {[%clk 0:04:51.2]} 8. O-O
{[%clk 0:04:50.8]} 8... Nd7 {[%clk 0:04:43.5]} 9. c3 {[%clk 0:04:49.8]} 9... Re8
{[%clk 0:04:42.1]} 10. Nh4 {[%clk 0:04:48.3]} 10... Nf8 {[%clk 0:04:40.3]} 11.
Qf3 {[%clk 0:04:44.5]} 11... Be6 {[%clk 0:04:35.6]} 12. Bd3 {[%clk 0:04:41.3]}
12... g6 {[%clk 0:04:33.9]} 13. Bf4 {[%clk 0:04:37.1]} 13... Bd5 {[%clk
0:04:30.1]} 14. Qg3 {[%clk 0:04:35.3]} 14... Bxf4 {[%clk 0:04:27.3]} 15. Qxf4
{[%clk 0:04:34.5]} 15... Ne6 {[%clk 0:04:26.8]} 16. Qg3 {[%clk 0:04:30.7]} 16...
Qc7 {[%clk 0:04:17.2]} 17. Qg4 {[%clk 0:04:24.4]} 17... f5 {[%clk 0:04:11.9]}
18. Qd1 {[%clk 0:04:18.1]} 18... Nf4 {[%clk 0:04:09.3]} 19. Bc2 {[%clk
0:04:06.5]} 19... Qe7 {[%clk 0:03:58.5]} 20. Bxf5 {[%clk 0:04:00.9]} 20... Qxh4
{[%clk 0:03:48.9]} 21. Bd7 {[%clk 0:03:50.7]} 21... Bxg2 {[%clk 0:03:36.2]} 22.
Bxe8 {[%clk 0:03:46.6]} 22... Qg5 {[%clk 0:03:31.6]} 23. h4 {[%clk 0:03:31.4]}
23... Qxh4 {[%clk 0:03:18.2]} 24. Bxf7+ {[%clk 0:03:25.6]} 24... Kg7 {[%clk
0:03:16]} 25. Bc4 {[%clk 0:03:08.4]} 25... Qh1# {[%clk 0:03:12.1]} 0-1

[Event "Live Chess"]
[Site "Chess.com"]
[Date "2023.05.20"]
[Round "-"]
[White "Duke_of_Bebington"]
[Black "blunderabit"]
[Result "0-1"]
[WhiteElo "1582"]
[BlackElo "1845"]
[TimeControl "300"]
[EndTime "14:02:50 PDT"]
[Termination "blunderabit won by resignation"]

1. e4 {[%clk 0:04:56.9]} 1... c5 {[%clk 0:04:57.8]} 2. c3 {[%clk 0:04:55.7]}
2... d5 {[%clk 0:04:55.5]} 3. exd5 {[%clk 0:04:54.2]} 3... Nf6 {[%clk
0:04:54.8]} 4. d4 {[%clk 0:04:42]} 4... Nxd5 {[%clk 0:04:50.6]} 5. dxc5 {[%clk
0:04:40.8]} 5... e6 {[%clk 0:04:49.5]} 6. b4 {[%clk 0:04:37.4]} 6... a5 {[%clk
0:04:48.2]} 7. Bd2 {[%clk 0:04:32.3]} 7... axb4 {[%clk 0:04:42]} 8. cxb4 {[%clk
0:04:30.9]} 8... Qf6 {[%clk 0:04:40.7]} 9. Bb5+ {[%clk 0:04:15.8]} 9... Bd7
{[%clk 0:04:37.4]} 10. Bxd7+ {[%clk 0:04:14.2]} 10... Nxd7 {[%clk 0:04:35.5]}
11. Ne2 {[%clk 0:03:49.3]} 11... Qxa1 {[%clk 0:04:28]} 12. Nec3 {[%clk
0:03:47.9]} 12... N7f6 {[%clk 0:04:02.9]} 13. Qb3 {[%clk 0:03:45]} 13... Nxc3
{[%clk 0:03:55.9]} 14. Bxc3 {[%clk 0:03:43]} 14... Qxa2 {[%clk 0:03:53.1]} 15.
Qc4 {[%clk 0:03:35.5]} 15... Qxc4 {[%clk 0:03:49.6]} 0-1

[Event "Live Chess"]
[Site "Chess.com"]
[Date "2023.05.20"]
[Round "-"]
[White "ameetghasi100"]
[Black "ViktorTheCoolBoy"]
[Result "0-1"]
[WhiteElo "2664"]
[BlackElo "2510"]
[TimeControl "300"]
[EndTime "14:03:10 PDT"]
[Termination "ViktorTheCoolBoy won by checkmate"]

1. d4 {[%clk 0:04:59]} 1... Nf6 {[%clk 0:04:58]} 2. c3 {[%clk 0:04:58.9]} 2...
e6 {[%clk 0:04:56.7]} 3. Nf3 {[%clk 0:04:58.8]} 3... d5 {[%clk 0:04:55.5]} 4.
Bg5 {[%clk 0:04:58.2]} 4... c5 {[%clk 0:04:54.2]} 5. e3 {[%clk 0:04:56.4]} 5...
Nbd7 {[%clk 0:04:53.3]} 6. Nbd2 {[%clk 0:04:55.8]} 6... h6 {[%clk 0:04:52.1]} 7.
Bh4 {[%clk 0:04:54.3]} 7... Qc7 {[%clk 0:04:51.1]} 8. Bd3 {[%clk 0:04:53.3]}
8... Bd6 {[%clk 0:04:49.7]} 9. Rc1 {[%clk 0:04:51.9]} 9... b6 {[%clk 0:04:48.7]}
10. Qe2 {[%clk 0:04:50.5]} 10... O-O {[%clk 0:04:46.8]} 11. Bg3 {[%clk
0:04:45.1]} 11... Bb7 {[%clk 0:04:45.5]} 12. O-O {[%clk 0:04:41.7]} 12... Bxg3
{[%clk 0:04:43.2]} 13. hxg3 {[%clk 0:04:40]} 13... e5 {[%clk 0:04:42.7]} 14. Bf5
{[%clk 0:04:27.9]} 14... e4 {[%clk 0:04:33.5]} 15. Nh2 {[%clk 0:04:27]} 15... g6
{[%clk 0:04:31.4]} 16. Bh3 {[%clk 0:04:24.8]} 16... c4 {[%clk 0:04:21]} 17. b3
{[%clk 0:04:18.6]} 17... b5 {[%clk 0:04:19.5]} 18. f4 {[%clk 0:04:09]} 18...
exf3 {[%clk 0:04:07.3]} 19. Qxf3 {[%clk 0:04:07.1]} 19... Rae8 {[%clk
0:04:03.9]} 20. Ng4 {[%clk 0:03:29.8]} 20... Nxg4 {[%clk 0:04:01.4]} 21. Qxg4
{[%clk 0:03:29.7]} 21... Nb6 {[%clk 0:03:56.7]} 22. Qf3 {[%clk 0:03:21.5]} 22...
Qe7 {[%clk 0:03:52.2]} 23. Rce1 {[%clk 0:03:16.8]} 23... Kg7 {[%clk 0:03:39.1]}
24. b4 {[%clk 0:03:01]} 24... Na4 {[%clk 0:03:31.2]} 25. Nb1 {[%clk 0:02:59.8]}
25... Nb2 {[%clk 0:03:25]} 26. Re2 {[%clk 0:02:48]} 26... Nd3 {[%clk 0:03:23.8]}
27. g4 {[%clk 0:02:43.2]} 27... Qg5 {[%clk 0:03:17.3]} 28. Nd2 {[%clk
0:02:39.1]} 28... Re7 {[%clk 0:03:11.1]} 29. Qg3 {[%clk 0:02:33.1]} 29... Re6
{[%clk 0:02:56.5]} 30. Rf3 {[%clk 0:02:14.5]} 30... Rfe8 {[%clk 0:02:54.1]} 31.
Nf1 {[%clk 0:02:14]} 31... Re4 {[%clk 0:02:33.2]} 32. Qc7 {[%clk 0:02:00.9]}
32... Qe7 {[%clk 0:02:25.3]} 33. Qa5 {[%clk 0:01:54.2]} 33... a6 {[%clk
0:02:24.2]} 34. Ng3 {[%clk 0:01:52.5]} 34... Re6 {[%clk 0:02:21.6]} 35. g5
{[%clk 0:01:48.4]} 35... Qxg5 {[%clk 0:02:20.3]} 36. Bxe6 {[%clk 0:01:45.6]}
36... Rxe6 {[%clk 0:02:20.2]} 37. Qc7 {[%clk 0:01:39.5]} 37... Qe7 {[%clk
0:02:19]} 38. Qb8 {[%clk 0:01:31.4]} 38... h5 {[%clk 0:02:14.6]} 39. Nf1 {[%clk
0:01:21.4]} 39... h4 {[%clk 0:02:09.3]} 40. Nh2 {[%clk 0:01:17.6]} 40... Re4
{[%clk 0:02:07.1]} 41. Rh3 {[%clk 0:01:11.9]} 41... g5 {[%clk 0:02:02.7]} 42.
Rf3 {[%clk 0:01:10]} 42... Qd7 {[%clk 0:01:57.9]} 43. Rd2 {[%clk 0:00:57.5]}
43... g4 {[%clk 0:01:53.2]} 44. Rf1 {[%clk 0:00:56.9]} 44... Rxe3 {[%clk
0:01:46.6]} 45. Rxd3 {[%clk 0:00:56.2]} 45... cxd3 {[%clk 0:01:42.7]} 46. Qf4
{[%clk 0:00:55.5]} 46... Qe6 {[%clk 0:01:32]} 47. Nxg4 {[%clk 0:00:53.1]} 47...
Rg3 {[%clk 0:01:27]} 48. Qg5+ {[%clk 0:00:45]} 48... Qg6 {[%clk 0:01:24.4]} 49.
Rxf7+ {[%clk 0:00:42.9]} 49... Kxf7 {[%clk 0:01:22.3]} 50. Ne5+ {[%clk
0:00:42.4]} 50... Ke6 {[%clk 0:01:18.1]} 51. Qd2 {[%clk 0:00:39.7]} 51... Qg5
{[%clk 0:01:14.4]} 52. Qf2 {[%clk 0:00:35.4]} 52... Qe3 {[%clk 0:01:13.5]} 53.
Nxd3 {[%clk 0:00:29.7]} 53... Qxd3 {[%clk 0:01:09.9]} 54. Qf8 {[%clk 0:00:26.6]}
54... Qg6 {[%clk 0:01:04.2]} 55. Kf2 {[%clk 0:00:19.8]} 55... Rxg2+ {[%clk
0:01:02.5]} 56. Kf1 {[%clk 0:00:19.7]} 56... h3 {[%clk 0:00:59.9]} 57. Qd8
{[%clk 0:00:17.7]} 57... Qf6+ {[%clk 0:00:58.6]} 58. Ke1 {[%clk 0:00:15.9]}
58... Qf2+ {[%clk 0:00:56.5]} 59. Kd1 {[%clk 0:00:12.7]} 59... Qd2# {[%clk
0:00:56.4]} 0-1

[Event "Live Chess"]
[Site "Chess.com"]
[Date "2023.05.20"]
[Round "-"]
[White "Ed_Knox"]
[Black "alexholowczak"]
[Result "0-1"]
[WhiteElo "1493"]
[BlackElo "1645"]
[TimeControl "300"]
[EndTime "14:03:16 PDT"]
[Termination "alexholowczak won on time"]

1. d4 {[%clk 0:04:57.1]} 1... e6 {[%clk 0:04:58.7]} 2. Bf4 {[%clk 0:04:54.3]}
2... d5 {[%clk 0:04:57.8]} 3. e3 {[%clk 0:04:53.1]} 3... c5 {[%clk 0:04:56.9]}
4. Nf3 {[%clk 0:04:52.1]} 4... Nc6 {[%clk 0:04:55.8]} 5. c3 {[%clk 0:04:45.6]}
5... Qb6 {[%clk 0:04:53.7]} 6. Qb3 {[%clk 0:04:43.1]} 6... Qxb3 {[%clk
0:04:47.3]} 7. axb3 {[%clk 0:04:41.8]} 7... Bd7 {[%clk 0:04:44.6]} 8. Na3 {[%clk
0:04:14.4]} 8... Nf6 {[%clk 0:04:41.7]} 9. Nb5 {[%clk 0:04:12.2]} 9... Rc8
{[%clk 0:04:26.8]} 10. Nxa7 {[%clk 0:04:02.6]} 10... Nxa7 {[%clk 0:04:23.7]} 11.
Rxa7 {[%clk 0:04:00.5]} 11... Bc6 {[%clk 0:04:21.9]} 12. Ne5 {[%clk 0:03:48.3]}
12... Bd6 {[%clk 0:03:53.8]} 13. Nxc6 {[%clk 0:02:48.7]} 13... Bxf4 {[%clk
0:03:48.6]} 14. exf4 {[%clk 0:02:36.6]} 14... bxc6 {[%clk 0:03:45.3]} 15. Bd3
{[%clk 0:02:26.4]} 15... O-O {[%clk 0:03:44]} 16. Ke2 {[%clk 0:02:17.7]} 16...
cxd4 {[%clk 0:03:40.2]} 17. cxd4 {[%clk 0:02:14.5]} 17... Rb8 {[%clk 0:03:39]}
18. Bc2 {[%clk 0:02:09.8]} 18... Rfc8 {[%clk 0:03:34.5]} 19. Rha1 {[%clk
0:02:06.8]} 19... c5 {[%clk 0:03:28.1]} 20. dxc5 {[%clk 0:01:57.4]} 20... Rxc5
{[%clk 0:03:26]} 21. Rb7 {[%clk 0:01:39.4]} 21... Rxc2+ {[%clk 0:03:22.1]} 22.
Kd3 {[%clk 0:01:37.8]} 22... Rcc8 {[%clk 0:03:17.4]} 23. Re7 {[%clk 0:01:23.5]}
23... Rxb3+ {[%clk 0:03:13.1]} 24. Kd4 {[%clk 0:01:17.8]} 24... Rb4+ {[%clk
0:03:09]} 25. Ke5 {[%clk 0:01:14.8]} 25... Rd8 {[%clk 0:02:49.2]} 26. f3 {[%clk
0:01:08.1]} 26... Rxb2 {[%clk 0:02:41.2]} 27. Raa7 {[%clk 0:01:04.6]} 27... Rxg2
{[%clk 0:02:22.9]} 28. Rxf7 {[%clk 0:00:55.4]} 28... Ne8 {[%clk 0:02:14.6]} 29.
Rfe7 {[%clk 0:00:46.3]} 29... d4 {[%clk 0:02:08.7]} 30. Kxe6 {[%clk 0:00:38.7]}
30... Re2+ {[%clk 0:02:07]} 31. Kf5 {[%clk 0:00:35.2]} 31... Rxe7 {[%clk
0:02:05.5]} 32. Rxe7 {[%clk 0:00:32.6]} 32... d3 {[%clk 0:02:04.8]} 33. Re1
{[%clk 0:00:31]} 33... Kf7 {[%clk 0:01:58.7]} 34. Ke4 {[%clk 0:00:26.1]} 34...
Nf6+ {[%clk 0:01:54.7]} 35. Ke3 {[%clk 0:00:24.8]} 35... Nd5+ {[%clk 0:01:48.7]}
36. Kd2 {[%clk 0:00:21.9]} 36... Nxf4 {[%clk 0:01:46.2]} 37. Re4 {[%clk
0:00:18.3]} 37... Nd5 {[%clk 0:01:34.9]} 38. Rd4 {[%clk 0:00:16.7]} 38... Ke7
{[%clk 0:01:20.8]} 39. Re4+ {[%clk 0:00:16]} 39... Kd6 {[%clk 0:01:11.7]} 40.
Kxd3 {[%clk 0:00:14.4]} 40... Nf6 {[%clk 0:00:59.9]} 41. Rd4+ {[%clk 0:00:13]}
41... Ke7 {[%clk 0:00:58.6]} 42. Kc4 {[%clk 0:00:10]} 42... Rxd4+ {[%clk
0:00:54.6]} 43. Kxd4 {[%clk 0:00:09.4]} 43... Nh5 {[%clk 0:00:50.4]} 44. Ke4
{[%clk 0:00:07.9]} 44... Kf6 {[%clk 0:00:48.4]} 45. h4 {[%clk 0:00:07.1]} 45...
Kg6 {[%clk 0:00:46.1]} 46. f4 {[%clk 0:00:06.5]} 46... Nf6+ {[%clk 0:00:45]} 47.
Kf3 {[%clk 0:00:05.6]} 47... Kh5 {[%clk 0:00:44.2]} 48. Kg3 {[%clk 0:00:04.6]}
48... Ne4+ {[%clk 0:00:43.3]} 49. Kh3 {[%clk 0:00:02.7]} 49... g6 {[%clk
0:00:37]} 0-1

[Event "Live Chess"]
[Site "Chess.com"]
[Date "2023.05.20"]
[Round "-"]
[White "Inglaterra"]
[Black "hturner40"]
[Result "0-1"]
[WhiteElo "2035"]
[BlackElo "1808"]
[TimeControl "300"]
[EndTime "14:03:18 PDT"]
[Termination "hturner40 won by resignation"]

1. e4 {[%clk 0:04:59.2]} 1... Nc6 {[%clk 0:04:58.2]} 2. Nf3 {[%clk 0:04:58.3]}
2... e5 {[%clk 0:04:57.2]} 3. Bb5 {[%clk 0:04:57.1]} 3... f5 {[%clk 0:04:55.9]}
4. d3 {[%clk 0:04:54.4]} 4... fxe4 {[%clk 0:04:54.5]} 5. dxe4 {[%clk 0:04:51.7]}
5... Nf6 {[%clk 0:04:53.3]} 6. O-O {[%clk 0:04:45.5]} 6... Bc5 {[%clk
0:04:51.7]} 7. Bxc6 {[%clk 0:04:38.1]} 7... bxc6 {[%clk 0:04:45.9]} 8. Nxe5
{[%clk 0:04:36.5]} 8... O-O {[%clk 0:04:32.4]} 9. Qd3 {[%clk 0:04:30]} 9... Qe7
{[%clk 0:04:24.1]} 10. Nf3 {[%clk 0:03:21.9]} 10... Qxe4 {[%clk 0:04:10.7]} 11.
Qxe4 {[%clk 0:03:17.9]} 11... Nxe4 {[%clk 0:04:09.6]} 12. Nbd2 {[%clk
0:03:14.1]} 12... d5 {[%clk 0:04:00.3]} 13. Nxe4 {[%clk 0:03:05.7]} 13... dxe4
{[%clk 0:03:58.8]} 14. Ne5 {[%clk 0:02:59.6]} 14... Ba6 {[%clk 0:03:56]} 15. Nd7
{[%clk 0:02:48.2]} 15... Bxf1 {[%clk 0:03:19.6]} 16. Nxf8 {[%clk 0:02:34.1]}
16... Rxf8 {[%clk 0:03:13.6]} 17. Kxf1 {[%clk 0:02:29.4]} 17... Rxf2+ {[%clk
0:03:10.8]} 18. Ke1 {[%clk 0:02:28.4]} 18... Rxg2 {[%clk 0:03:06]} 19. b4 {[%clk
0:02:13.5]} 19... Bd4 {[%clk 0:02:57.2]} 20. Rb1 {[%clk 0:02:09.6]} 20... e3
{[%clk 0:02:43.1]} 0-1

[Event "Live Chess"]
[Site "Chess.com"]
[Date "2023.05.20"]
[Round "-"]
[White "Long1968"]
[Black "Singapourfeuj"]
[Result "0-1"]
[WhiteElo "1074"]
[BlackElo "2243"]
[TimeControl "300"]
[EndTime "14:03:33 PDT"]
[Termination "Singapourfeuj won on time"]

1. e4 {[%clk 0:04:56.2]} 1... e6 {[%clk 0:04:59.1]} 2. d4 {[%clk 0:04:53.7]}
2... d5 {[%clk 0:04:58]} 3. Nc3 {[%clk 0:04:49.5]} 3... Nf6 {[%clk 0:04:56.2]}
4. exd5 {[%clk 0:04:44.6]} 4... exd5 {[%clk 0:04:54.6]} 5. Nf3 {[%clk
0:04:37.3]} 5... Bd6 {[%clk 0:04:53.5]} 6. Bg5 {[%clk 0:04:31.8]} 6... h6 {[%clk
0:04:51.7]} 7. Bh4 {[%clk 0:04:28.3]} 7... c6 {[%clk 0:04:48.6]} 8. Bd3 {[%clk
0:04:21.8]} 8... Qe7+ {[%clk 0:04:47.5]} 9. Qe2 {[%clk 0:04:18.4]} 9... Qxe2+
{[%clk 0:04:46]} 10. Nxe2 {[%clk 0:04:14.8]} 10... Ne4 {[%clk 0:04:43.5]} 11.
Bxe4 {[%clk 0:04:04.9]} 11... dxe4 {[%clk 0:04:42.6]} 12. Ne5 {[%clk 0:04:01.7]}
12... Nd7 {[%clk 0:04:35]} 13. Nxd7 {[%clk 0:03:50.1]} 13... Bxd7 {[%clk
0:04:34]} 14. Bg3 {[%clk 0:03:44.2]} 14... Ke7 {[%clk 0:04:32]} 15. Bxd6+ {[%clk
0:03:37.7]} 15... Kxd6 {[%clk 0:04:31.1]} 16. Nc3 {[%clk 0:03:31.3]} 16... f5
{[%clk 0:04:29.6]} 17. O-O {[%clk 0:03:21.3]} 17... Rae8 {[%clk 0:04:27.4]} 18.
Rfe1 {[%clk 0:03:16.4]} 18... g5 {[%clk 0:04:24.7]} 19. g4 {[%clk 0:03:06.5]}
19... Rhf8 {[%clk 0:04:18.8]} 20. gxf5 {[%clk 0:02:43.7]} 20... Bxf5 {[%clk
0:03:47.1]} 21. Re3 {[%clk 0:02:35]} 21... Bg6 {[%clk 0:03:43.8]} 22. Rae1
{[%clk 0:02:28]} 22... Rf4 {[%clk 0:03:42.2]} 23. f3 {[%clk 0:02:13.9]} 23...
Rxf3 {[%clk 0:03:39.4]} 24. Rxf3 {[%clk 0:02:10.1]} 24... exf3 {[%clk
0:03:38.4]} 25. Rxe8 {[%clk 0:02:03.1]} 25... Bxe8 {[%clk 0:03:33.4]} 26. Kf2
{[%clk 0:01:59.2]} 26... g4 {[%clk 0:03:24.5]} 27. Kg3 {[%clk 0:01:27.5]} 27...
Bg6 {[%clk 0:03:21]} 28. Nd1 {[%clk 0:01:04.1]} 28... h5 {[%clk 0:03:08.9]} 29.
Ne3 {[%clk 0:00:57.4]} 29... c5 {[%clk 0:03:04.4]} 30. c3 {[%clk 0:00:36.9]}
30... cxd4 {[%clk 0:03:02.9]} 31. cxd4 {[%clk 0:00:33.8]} 31... b6 {[%clk
0:03:01.4]} 32. h3 {[%clk 0:00:19.2]} 32... gxh3 {[%clk 0:02:57.9]} 33. Kxh3
{[%clk 0:00:16.4]} 33... Bd3 {[%clk 0:02:53.1]} 34. Kg3 {[%clk 0:00:07.2]} 34...
Be2 {[%clk 0:02:51.2]} 35. Kf2 {[%clk 0:00:01.6]} 35... h4 {[%clk 0:02:50.2]}
0-1